Workbook

Sheet 2023-04-01
A2: التاريخ | B2: رقم المزرعة | C2: السولار المطلوب | D2: سعة خزانات السولار | E2: الرصيد السابق | F2: الوارد | G2: الاستهلاك اليومى | H2: الرصيد الحالى | I2: العمر بالاسبوع | J2: النسبة المئوية
A3: 2023-04-01 | B3: م01 | C3: 8800 | D3: 28000 | E3: 19300 | F3: 0 | G3: 100 | H3: 19200 | I3: 12 | J3: 0.6857142857
A4: 2023-04-01 | B4: م02 | C4: 28000 | D4: 28000 | E4: 0 | F4: 0 | G4: 0 | H4: 0 | I4: 3 | J4: 0
A5: 2023-04-01 | B5: م03 | C5: 41400 | D5: 41400 | E5: 0 | F5: 0 | G5: 0 | H5: 0 | I5: 2 | J5: 0
A6: 2023-04-01 | B6: م06 | C6: 52500 | D6: 52500 | E6: 0 | F6: 0 | G6: 0 | H6: 0 | I6: 39 | J6: 0
A7: 2023-04-01 | B7: م08 | C7: 34500 | D7: 34500 | E7: 0 | F7: 0 | G7: 0 | H7: 0 | I7: 22 | J7: 0
A8: 2023-04-01 | B8: م11 | C8: 28200 | D8: 28200 | E8: 0 | F8: 0 | G8: 0 | H8: 0 | I8: 64 | J8: 0
A9: 2023-04-01 | B9: م12 | C9: 28200 | D9: 28200 | E9: 0 | F9: 0 | G9: 0 | H9: 0 | I9: 30 | J9: 0
A10: 2023-04-01 | B10: م16 | C10: 34300 | D10: 34300 | E10: 0 | F10: 0 | G10: 0 | H10: 0 | I10: 49 | J10: 0

Sheet 2023-04-02
A2: التاريخ | B2: رقم المزرعة | C2: السولار المطلوب | D2: سعة خزانات السولار | E2: الرصيد السابق | F2: الوارد | G2: الاستهلاك اليومى | H2: الرصيد الحالى | I2: العمر بالاسبوع | J2: النسبة المئوية
A3: 2023-04-02 | B3: م01 | C3: 8800 | D3: 28000 | E3: 19300 | F3: 0 | G3: 100 | H3: 19200 | I3: 12 | J3: 0.6857142857
A4: 2023-04-02 | B4: م02 | C4: 28000 | D4: 28000 | E4: 0 | F4: 0 | G4: 0 | H4: 0 | I4: 3 | J4: 0
A5: 2023-04-02 | B5: م03 | C5: 41400 | D5: 41400 | E5: 0 | F5: 0 | G5: 0 | H5: 0 | I5: 2 | J5: 0
A6: 2023-04-02 | B6: م06 | C6: 52500 | D6: 52500 | E6: 0 | F6: 0 | G6: 0 | H6: 0 | I6: 39 | J6: 0
A7: 2023-04-02 | B7: م08 | C7: 34500 | D7: 34500 | E7: 0 | F7: 0 | G7: 0 | H7: 0 | I7: 22 | J7: 0
A8: 2023-04-02 | B8: م11 | C8: 28200 | D8: 28200 | E8: 0 | F8: 0 | G8: 0 | H8: 0 | I8: 64 | J8: 0
A9: 2023-04-02 | B9: م12 | C9: 28200 | D9: 28200 | E9: 0 | F9: 0 | G9: 0 | H9: 0 | I9: 30 | J9: 0
A10: 2023-04-02 | B10: م16 | C10: 34300 | D10: 34300 | E10: 0 | F10: 0 | G10: 0 | H10: 0 | I10: 49 | J10: 0

Sheet 2023-04-03
A2: التاريخ | B2: رقم المزرعة | C2: السولار المطلوب | D2: سعة خزانات السولار | E2: الرصيد السابق | F2: الوارد | G2: الاستهلاك اليومى | H2: الرصيد الحالى | I2: العمر بالاسبوع | J2: النسبة المئوية
A3: 2023-04-03 | B3: م01 | C3: 8800 | D3: 28000 | E3: 19300 | F3: 0 | G3: 100 | H3: 19200 | I3: 12 | J3: 0.6857142857
A4: 2023-04-03 | B4: م02 | C4: 28000 | D4: 28000 | E4: 0 | F4: 0 | G4: 0 | H4: 0 | I4: 3 | J4: 0
A5: 2023-04-03 | B5: م03 | C5: 41400 | D5: 41400 | E5: 0 | F5: 0 | G5: 0 | H5: 0 | I5: 2 | J5: 0
A6: 2023-04-03 | B6: م06 | C6: 52500 | D6: 52500 | E6: 0 | F6: 0 | G6: 0 | H6: 0 | I6: 39 | J6: 0
A7: 2023-04-03 | B7: م08 | C7: 34500 | D7: 34500 | E7: 0 | F7: 0 | G7: 0 | H7: 0 | I7: 22 | J7: 0
A8: 2023-04-03 | B8: م11 | C8: 28200 | D8: 28200 | E8: 0 | F8: 0 | G8: 0 | H8: 0 | I8: 64 | J8: 0
A9: 2023-04-03 | B9: م12 | C9: 28200 | D9: 28200 | E9: 0 | F9: 0 | G9: 0 | H9: 0 | I9: 30 | J9: 0
A10: 2023-04-03 | B10: م16 | C10: 34300 | D10: 34300 | E10: 0 | F10: 0 | G10: 0 | H10: 0 | I10: 49 | J10: 0

Sheet ادخال البيانات
A2: التاريخ | B2: رقم المزرعة | C2: الرصيد السابق | D2: الوارد | E2: الاستهلاك اليومى | F2: العمر بالاسبوع | K2: مطلوب ترحيل البيانات الموجودة الى الصفحة التالية مع ادراج صفحة جديدة عند الحفظ بنفس التاريخ الموجود بصفحة ادخال البيانات وهكذا حتى نهاية الشهر ( يعنى كل يوم صفحة ) مطلوب اضافة وارد السولار | U2: التاريخ | V2: رقم المزرعة | W2: السولار المطلوب | X2: سعة خزانات السولار | Y2: الرصيد السابق | Z2: الوارد | AA2: الاستهلاك اليومى | AB2: الرصيد الحالى | AC2: العمر بالاسبوع | AD2: النسبة المئوية
B3: م01 | C3: 19300 | D3: 0 | E3: 100 | F3: 12 | U3: =A3 -> 00:00:00 | V3: م01 | W3: =X3-AB3 -> 8800 | X3: 28000 | Y3: =C3 -> 19300 | Z3: =D3 -> 0 | AA3: =E3 -> 100 | AB3: =Y3+Z3-AA3 -> 19200 | AC3: =F3 -> 12 | AD3: =AB3/X3 -> 0.6857142857
A4: =A3 -> 00:00:00 | B4: م02 | C4: 12500 | D4: 0 | E4: 0 | F4: 3 | U4: 00:00:00 | V4: م02 | W4: =X4-AB4 -> 15500 | X4: 28000 | Y4: =C4 -> 12500 | Z4: =D4 -> 0 | AA4: =E4 -> 0 | AB4: =Y4+Z4-AA4 -> 12500 | AC4: =F4 -> 3 | AD4: =AB4/X4 -> 0.4464285714
A5: =A4 -> 00:00:00 | B5: م03 | C5: 4800 | D5: 0 | E5: 0 | F5: 2 | U5: 00:00:00 | V5: م03 | W5: =X5-AB5 -> 36600 | X5: 41400 | Y5: 4800 | Z5: =D5 -> 0 | AA5: =E5 -> 0 | AB5: =Y5+Z5-AA5 -> 4800 | AC5: =F5 -> 2 | AD5: =AB5/X5 -> 0.115942029
A6: =A5 -> 00:00:00 | B6: م06 | C6: 33600 | D6: 0 | E6: 0 | F6: 39 | U6: 00:00:00 | V6: م06 | W6: =X6-AB6 -> 18900 | X6: 52500 | Y6: 33600 | Z6: =D6 -> 0 | AA6: =E6 -> 0 | AB6: =Y6+Z6-AA6 -> 33600 | AC6: =F6 -> 39 | AD6: =AB6/X6 -> 0.64
A7: 00:00:00 | B7: م08 | C7: 19400 | D7: 0 | E7: 0 | F7: 22 | U7: 00:00:00 | V7: م08 | W7: =X7-AB7 -> 15100 | X7: 34500 | Y7: 19400 | Z7: =D7 -> 0 | AA7: =E7 -> 0 | AB7: =Y7+Z7-AA7 -> 19400 | AC7: =F7 -> 22 | AD7: =AB7/X7 -> 0.5623188406
A8: 00:00:00 | B8: م11 | C8: 18000 | D8: 0 | E8: 0 | F8: 64 | U8: 00:00:00 | V8: م11 | W8: =X8-AB8 -> 10200 | X8: 28200 | Y8: 18000 | Z8: =D8 -> 0 | AA8: =E8 -> 0 | AB8: =Y8+Z8-AA8 -> 18000 | AC8: =F8 -> 64 | AD8: =AB8/X8 -> 0.6382978723
A9: 00:00:00 | B9: م12 | C9: 23600 | D9: 0 | E9: 0 | F9: 30 | U9: 00:00:00 | V9: م12 | W9: =X9-AB9 -> 4600 | X9: 28200 | Y9: 23600 | Z9: =D9 -> 0 | AA9: =E9 -> 0 | AB9: =Y9+Z9-AA9 -> 23600 | AC9: =F9 -> 30 | AD9: =AB9/X9 -> 0.8368794326
A10: 00:00:00 | B10: م16 | C10: 25000 | D10: 0 | E10: 0 | F10: 49 | U10: 00:00:00 | V10: م16 | W10: =X10-AB10 -> 9300 | X10: 34300 | Y10: 25000 | Z10: =D10 -> 0 | AA10: =E10 -> 0 | AB10: =Y10+Z10-AA10 -> 25000 | AC10: =F10 -> 49 | AD10: =AB10/X10 -> 0.7288629738
